[Event "Italian-ch Semifinal 2022"]
[Site "Acqui Terme"]
[Date "2022.06.15"]
[Round "5.9"]
[White "Floris, Federico"]
[Black "Cocchi, Andrea"]
[Result "1-0"]
[ECO "B81"]
[WhiteElo "1950"]
[BlackElo "2205"]
[Annotator "TA"]
[PlyCount "69"]
[EventDate "2022.06.15"]
[EventType "swiss"]
[EventCountry "ITA"]
[SourceTitle "playchess.com"]
[Source "ChessBase"]
[SourceQuality "1"]
[TimeControl "40/5400+30:1800+30"]

{[%evp 18,69,77,58,47,45,48,52,53,52,47,45,96,95,89,91,114,80,100,102,108,112,125,113,194,124,127,120,120,124,127,130,125,120,270,299,282,294,126,306,306,308,444,434,626,289,392,308,383,354,347,346,1211,1070]} 1. e4 {[%emt 0:00:05]} c5 {[%emt 0:01:26]} 2. Nf3 {[%emt 0:00:06]} d6 {[%emt 0:00:15]} 3. d4 {[%emt 0:00:06]} Nf6 {[%emt 0:00:45]} 4. Nc3 {[%emt 0:00:13]} cxd4 {[%emt 0:00:08]} 5. Nxd4 {[%emt 0:00:06]} e6 {[%emt 0:01:26]} 6. g4 {[%emt 0:00:56]} a6 {[%emt 0:06:47]} 7. g5 {[%emt 0:01:27]} Nfd7 {[%emt 0:00:08]} 8. Be3 {[%emt 0:01:30]} b5 {[%emt 0:01:46]} 9. a3 {[%emt 0:01:57]} Bb7 {[%emt 0:00:52]} 10. Qd2 {[%emt 0:01:59]} Nb6 {[%emt 0:18:22] B81: Sicilian Scheveningen: Keres Attack.} 11. O-O-O {[%emt 0:13:24]} N8d7 {[%emt 0:03:53]} 12. f4 {[%emt 0:01:32][%cal Bf2f4,Bf4f5][%mdl 32]} Rc8 {[%emt 0:05:31] White is slightly better.} 13. f5 {[%emt 0:23:52]} e5 {[%emt 0:09:19]} 14. Nf3 {[%emt 0:00:53] [#]} Nc4 $146 {[%emt 0:08:20]} (14... h6 $14) ({Predecessor:} 14... Rxc3 15. Qxc3 Bxe4 16. Bxb6 Nxb6 17. Rg1 Be7 18. h4 Na4 19. Qe3 Qa8 20. Bg2 O-O {1-0 (33) Janko,Z (2215)-Turna,S (2230) Slovakia 2006}) 15. Bxc4 $16 {[%emt 0:02:59]} Rxc4 {[%emt 0:00:03]} 16. Qd3 {[%emt 0:00:11]} Be7 {[%emt 0:18:03]} 17. h4 {[%emt 0:02:23][%cal Bh2h4,Bh4h5,Bh5g6][%mdl 32]} Nc5 {[%emt 0:05:49]} 18. Bxc5 {[%emt 0:01:26]} Rxc5 {[%emt 0:00:03]} 19. Rhg1 {[%emt 0:05:54]} Qc7 {[%emt 0:05:49]} 20. h5 {[%emt 0:07:48]} Kd8 {[%emt 0:04:22]} (20... h6 $16 {is a better defense.}) 21. g6 {[%emt 0:07:26]} ({White should play} 21. h6 $18 g6 22. f6) 21... hxg6 {[%emt 0:03:21]} 22. hxg6 {[%emt 0:00:10]} f6 {[%emt 0:00:50]} 23. Rh1 $36 {[%emt 0:01:09][%mdl 2048] Keeping Black busy.} Rg8 {[%emt 0:00:08]} 24. Rh4 {[%emt 0:03:36] White is much more active.} Kc8 {[%emt 0:00:17][%cal Od6d5]} 25. Nd2 {[%emt 0:02:40][%cal Bf3d2,Bd2b3,Bb3a5][%mdl 32]} d5 {[%emt 0:02:00]} (25... Kb8 $16 {was worth a try.}) 26. exd5 $18 {[%emt 0:01:41]} ({Don't take} 26. Nxd5 $6 Bxd5 27. exd5 Rd8 $16) 26... Rxc3 {[%emt 0:01:45]} 27. bxc3 {[%emt 0:05:37]} Bxa3+ {[%emt 0:00:35]} 28. Kb1 {[%emt 0:00:07]} Rd8 {[%emt 0:00:30]} 29. c4 {[%emt 0:01:22]} Qa5 {[%emt 0:00:53]} (29... Be7 $142 30. Rh7 (30. cxb5 Bxd5 31. Qe2 Qc3 $16) 30... Bb4) 30. Nb3 {[%emt 0:02:53]} Qb6 {[%emt 0:01:07]} (30... Qa4 $142 31. Rdh1 Bf8) 31. cxb5 {[%emt 0:04:55]} (31. c5 $142 Qc7 32. d6) 31... axb5 {[%emt 0:00:25]} 32. Qc3+ {[%emt 0:02:12]} Kb8 {[%emt 0:00:21]} 33. Qa5 {[%emt 0:00:16]} Qxa5 {[%emt 0:01:00]} 34. Nxa5 {[%emt 0:00:06]} Bxd5 $2 {[%emt 0:00:04] [#]} (34... Rxd5 35. Rh8+ Kc7) 35. Nc6+ {[%emt 0:00:32] Weighted Error Value: White=0.25 (precise) /Black=0.35} 1-0

[Event "Italian-ch Semifinal 2022"]
[Site "Acqui Terme"]
[Date "2022.06.15"]
[Round "5.10"]
[White "Hercegovac, Neven"]
[Black "Duraccio, Walter Mattia"]
[Result "1-0"]
[ECO "B15"]
[WhiteElo "2155"]
[BlackElo "1963"]
[Annotator "TA"]
[PlyCount "53"]
[EventDate "2022.06.15"]
[EventType "swiss"]
[EventCountry "ITA"]
[SourceTitle "playchess.com"]
[Source "ChessBase"]
[SourceQuality "1"]
[TimeControl "40/5400+30:1800+30"]

{[%evp 9,53,0,2,6,13,6,37,18,33,12,55,33,75,83,116,58,54,56,62,58,64,56,56,45,93,84,109,79,71,103,116,129,141,137,145,136,157,169,404,406,391,404,450,439,435,425]} 1. e4 {[%emt 0:00:02]} c6 {[%emt 0:04:31][%cal Bc7c6,Bc6c5][%mdl 32]} 2. d4 {[%emt 0:00:05]} d5 {[%emt 0:00:04]} 3. Nc3 {[%emt 0:00:03][%cal Bb1c3,Bc3e4,Be4g3,Bg3e2][%mdl 32]} dxe4 {[%emt 0:00:07]} 4. Nxe4 {[%emt 0:00:03]} Nf6 {[%emt 0:00:07]} 5. Ng3 {[%emt 0:00:03]} h5 {[%emt 0:00:37][%cal Oc6c5]} 6. h3 {[%emt 0:00:05] B15: Caro-Kann: 3 Nc3: 3...g6 and 3...dxe4 4 Nxe4 Nf6 5 Nxf6+ exf6.} c5 {[%emt 0:01:10]} 7. Nf3 {[%emt 0:00:32]} h4 {[%emt 0:00:56]} 8. Ne2 {[%emt 0:00:11] White is slightly better.} Nc6 {[%emt 0:00:11]} 9. c3 {[%emt 0:00:08] [#]} g6 $146 {[%emt 0:02:23]} ({Predecessor:} 9... cxd4 10. Nexd4 Bd7 11. Be2 e5 12. Nxc6 Bxc6 13. O-O Qxd1 14. Rxd1 Nd7 15. Be3 f6 {1-0 (39) Bellahcene,B (2508)-Hakobyan,A (2602) Chess.com INT 2022}) 10. Bg5 {[%emt 0:04:41]} ({Of course not} 10. dxc5 Qxd1+ 11. Kxd1 Ne4 $11) 10... cxd4 {[%emt 0:01:45]} 11. Nexd4 {[%emt 0:00:51]} Qb6 {[%emt 0:07:31]} 12. Qb3 {[%emt 0:03:45]} (12. Nxc6 $16 Qxc6 13. Bd3) 12... Nxd4 $14 {[%emt 0:05:27]} 13. Nxd4 {[%emt 0:00:58][%cal Bf3d4,Bd4b5,Bb5c7,Bc7d5,Bd5b6][%mdl 32] Threatens to win with Bb5+.} Qxb3 {[%emt 0:09:56]} 14. axb3 {[%emt 0:00:16]} Bd7 {[%emt 0:01:38]} 15. Be2 {[%emt 0:15:06]} Ne4 {[%emt 0:04:22]} 16. Be3 {[%emt 0:00:58]} Bg7 {[%emt 0:02:02]} (16... a6 $14 {is more appropriate.}) 17. Nb5 $16 {[%emt 0:06:12] Hoping for Nc7+.} O-O {[%emt 0:04:21]} 18. Nc7 {[%emt 0:03:19]} Rac8 {[%emt 0:14:15]} 19. Nd5 {[%emt 0:00:51]} Rfe8 {[%emt 0:00:29]} 20. Rxa7 {[%emt 0:01:22][%cal Ba1a7,Ba7a3,Ba3a8][%mdl 32] And now Nb6 would win.} Bc6 {[%emt 0:01:15]} 21. Nb6 {[%emt 0:07:04] White is more active.} Rcd8 {[%emt 0:00:09][%cal Oe4c3] White must now prevent ...Nxc3!} 22. O-O {[%emt 0:02:53]} Nd2 {[%emt 0:07:50] [#]} 23. Rd1 {[%emt 0:01:58]} Nxb3 {[%emt 0:00:21]} (23... Ne4 {might work better.} 24. Rxd8 Rxd8) 24. Ra3 $18 {[%emt 0:00:14]} Rxd1+ {[%emt 0:00:12]} 25. Bxd1 {[%emt 0:00:02]} Nd2 {[%emt 0:00:06]} 26. Bxd2 {[%emt 0:00:08]} Rd8 {[%emt 0:00:05] [#]} 27. Ra8 $1 {[%emt 0:00:05] Weighted Error Value: White=0.08 (flawless) /Black=0.29 (precise)} 1-0